[Event "LV Capablanca Memorial Premier 2022"]
[Site "La Habana"]
[Date "2022.04.25"]
[Round "6.1"]
[White "Hernandez Moya, Yuleisy"]
[Black "Kiolbasa, Oliwia"]
[Result "1-0"]
[ECO "C45"]
[WhiteElo "2250"]
[BlackElo "2388"]
[Annotator "TA"]
[PlyCount "81"]
[EventDate "2022.04.20"]
[EventType "tourn"]
[EventCountry "CUB"]
[SourceTitle "playchess.com"]
[Source "ChessBase"]
[SourceQuality "1"]
[TimeControl "40/5400+30:1800+30"]

{[%evp 11,81,0,0,-24,0,0,0,0,0,0,0,4,50,43,27,48,130,135,123,120,208,123,148,147,174,173,257,231,238,135,150,161,154,151,295,301,651,629,628,437,404,431,423,409,686,677,849,852,918,425,416,391,394,388,585,593,670,637,666,673,670,666,651,621,785,772,989,961,1554,1484,29990,29991]} 1. e4 {[%emt 0:00:31] Roiz,M} e5 {[%emt 0:01:15]} 2. Nf3 {[%emt 0:00:07]} Nc6 {[%emt 0:00:06]} 3. d4 {[%emt 0:00:06]} exd4 {[%emt 0:00:10]} 4. Nxd4 {[%emt 0:00:07]} Bc5 {[%emt 0:00:16]} 5. Nb3 {[%emt 0:00:08]} Bb6 {[%emt 0:00:25]} 6. Nc3 {[%emt 0:00:09]} Nf6 {[%emt 0:00:41]} 7. Qe2 {[%emt 0:00:31] C45: Scotch Game.} O-O {[%emt 0:01:40]} 8. Be3 {[%emt 0:01:43]} d5 {[%emt 0:06:59] Strongly threatening ...Bg4.} 9. O-O-O {[%emt 0:12:53] The position is equal.} d4 {[%emt 0:02:53]} 10. Bg5 {[%emt 0:09:39][%cal Oc3d5,Be3g5,Bg5h4,Bh4g3][%mdl 32]} h6 {[%emt 0:13:15]} 11. Bh4 {[%emt 0:06:01] [#]} g5 $146 {[%emt 0:17:12]} (11... Bg4 $11 {might be stronger.} 12. f3 Be6) ({Predecessor:} 11... Qd6 12. Kb1 Qe6 13. Bxf6 Qxf6 14. Nd5 Qd6 15. f4 Be6 16. c4 Nb4 17. Qf3 Rfe8 18. Nxd4 Bxd4 19. Rxd4 {1-0 (38) Howell,D (2705)-Roiz,M (2600) Skopje 2015 CBM 169 [Roiz,M]}) 12. Bg3 $14 {[%emt 0:01:32]} Re8 {[%emt 0:00:34]} 13. f3 {[%emt 0:03:35]} a5 {[%emt 0:12:57]} (13... Be6 $14) 14. Na4 $16 {[%emt 0:21:59]} Ba7 {[%emt 0:07:43][%cal Of6d5]} 15. Qd2 {[%emt 0:00:11]} Bd7 {[%emt 0:09:58]} (15... Nh5 $16) 16. Nbc5 {[%emt 0:14:12]} (16. h4 $18 Nh5 17. Bf2) 16... Qe7 {[%emt 0:02:59]} 17. Nxd7 {[%emt 0:02:05]} Nxd7 {[%emt 0:00:58] [#]} 18. h4 $1 {[%emt 0:00:39]} (18. Bxc7 Rec8 19. Bg3 (19. Bxa5 $2 Bb8 $19) 19... Nb4 $17) 18... Kg7 {[%emt 0:02:40]} (18... Qb4 {was necessary.}) 19. hxg5 $18 {[%emt 0:03:14]} (19. Bxc7 $6 Rac8 $14) 19... hxg5 {[%emt 0:00:05] [#]} 20. c3 {[%emt 0:04:45]} ({Don't do} 20. Bxc7 $6 Rac8 $16) (20. Bb5 $1 $18) 20... Rad8 {[%emt 0:10:21]} 21. Bxc7 {[%emt 0:03:50] Threatens to win with Rh5.} Rc8 {[%emt 0:00:26]} 22. Bg3 {[%emt 0:00:09] And now Bb5 would win. &Bianco is more active.} (22. cxd4 $2 Rxc7 23. Kb1 Bxd4 $17) ({Don't go for} 22. Bd6 $2 Qxd6 23. Qxg5+ Qg6 24. Qxg6+ fxg6 $19) 22... Nce5 {[%emt 0:03:25]} (22... Red8 $16 {might work better.} 23. Kb1 Nde5) 23. Kb1 {[%emt 0:00:19]} Nc4 $2 {[%emt 0:01:10]} (23... d3 24. Bxd3 Red8) 24. Bxc4 {[%emt 0:00:37]} Rxc4 {[%emt 0:00:05]} 25. b3 {[%emt 0:00:17]} dxc3 {[%emt 0:04:06]} 26. Nxc3 {[%emt 0:01:43] Really sharp!} Rd4 {[%emt 0:00:06]} 27. Qb2 {[%emt 0:02:01]} Ne5 {[%emt 0:00:10]} (27... Qf6 $142 28. Rc1 Ne5) 28. Nd5 {[%emt 0:01:15]} Qc5 {[%emt 0:00:55]} 29. Rc1 {[%emt 0:02:42]} Qb5 {[%emt 0:00:34]} 30. Nc7 {[%emt 0:00:56]} (30. Bxe5+ $142 Rxe5 31. Rhd1 Rexd5 32. exd5 Qxd5 33. Rc4) 30... Qd3+ {[%emt 0:00:27]} 31. Ka1 {[%emt 0:01:57]} Re7 {[%emt 0:00:47]} 32. Bf2 {[%emt 0:02:08]} ({Not} 32. Nd5 $2 Rxd5 33. Qc2 (33. exd5 $2 Bd4 $19) 33... Qxc2 34. Rxc2 Rd3 $19) 32... Kg6 {[%emt 0:00:29]} (32... Bb6 $142 33. Nb5 Qxb5) 33. Rc3 {[%emt 0:02:32]} Qd1+ {[%emt 0:00:32]} 34. Rxd1 {[%emt 0:00:12]} Rxd1+ {[%emt 0:00:03]} 35. Rc1 {[%emt 0:00:16]} Rxc1+ {[%emt 0:01:06]} 36. Qxc1 {[%emt 0:00:06]} Bxf2 {[%emt 0:00:02]} 37. Nd5 {[%emt 0:00:37]} Re8 {[%emt 0:00:39]} 38. Qc7 {[%emt 0:01:29][%csl LRa5,LRb7]} Nd3 {[%emt 0:00:49]} 39. Ne7+ {[%emt 0:01:09]} Kg7 {[%emt 0:00:29]} 40. Nf5+ {[%emt 0:00:00]} Kh8 {[%emt 0:00:00]} 41. Qxf7 {[%emt 0:03:56] Weighted Error Value: White=0.23 (precise) /Black=0.89} 1-0

[Event "LV Capablanca Memorial Premier 2022"]
[Site "La Habana"]
[Date "2022.04.25"]
[Round "6.2"]
[White "Forgas Moreno, Yaniela"]
[Black "Ordaz Valdes, Lisandra Teresa"]
[Result "1/2-1/2"]
[ECO "A03"]
[WhiteElo "2303"]
[BlackElo "2371"]
[Annotator "TA"]
[PlyCount "77"]
[EventDate "2022.04.20"]
[EventType "tourn"]
[EventCountry "CUB"]
[SourceTitle "playchess.com"]
[Source "ChessBase"]
[SourceQuality "1"]
[TimeControl "40/5400+30:1800+30"]

{[%evp 9,77,0,0,-31,-35,-28,-35,-17,-19,-6,5,25,17,19,25,9,45,-19,-13,-105,-129,-106,-50,-145,-62,-51,-62,-52,-48,-56,-56,-59,-59,-59,-58,-61,-50,-66,-64,-85,-50,-36,0,0,0,-4,0,0,0,-12,-5,-2,-3,-2,0,0,0,0,0,0,0,0,0,0,0,0,0,0,0,0]} 1. f4 {[%emt 0:04:48]} d5 {[%emt 0:00:17]} 2. Nf3 {[%emt 0:00:02]} g6 {[%emt 0:00:08]} 3. d3 {[%emt 0:00:14]} Bg7 {[%emt 0:00:28]} 4. g3 {[%emt 0:00:29]} c5 {[%emt 0:00:15]} 5. Bg2 {[%emt 0:00:28]} Nc6 {[%emt 0:00:11]} 6. e4 {[%emt 0:06:35] A03: Bird's Opening with 1...d5.} dxe4 {[%emt 0:07:19]} 7. dxe4 {[%emt 0:00:00]} Qxd1+ {[%emt 0:00:36]} 8. Kxd1 {[%emt 0:00:00] [#] Black is slightly better.} Bg4 $146 {[%emt 0:01:56]} ({Predecessor:} 8... Nf6 9. e5 Ng4 10. Re1 Be6 11. h3 Nf2+ 12. Ke2 Ne4 13. g4 f5 14. exf6 Bc4+ {½-½ (23) Bondar,T (2145)-Romashin,E (2179) Minsk 2005}) 9. c3 {[%emt 0:02:07]} O-O-O+ {[%emt 0:04:12]} 10. Kc2 {[%emt 0:03:03]} e5 {[%emt 0:02:51]} 11. Be3 {[%emt 0:02:02]} exf4 {[%emt 0:16:26]} 12. gxf4 {[%emt 0:02:57]} Nf6 {[%emt 0:12:59]} 13. Ng5 {[%emt 0:03:54]} (13. h3 $14 Be6 14. Nbd2) 13... Rd7 $11 {[%emt 0:00:23]} 14. e5 {[%emt 0:05:54]} (14. Nd2 $11 {keeps the balance.}) 14... Bf5+ $17 {[%emt 0:01:13]} 15. Kc1 {[%emt 0:00:17]} Nh5 {[%emt 0:16:40]} (15... Ng4 $17 16. Bxc5 Ngxe5 17. fxe5 Bh6) 16. Ne4 {[%emt 0:06:13] [#]} ({White should try} 16. Rd1 $15) 16... Bxe4 {[%emt 0:00:00]} (16... Bh6 $1 $17 {[%cal Rh6f4]} 17. Nd6+ Kc7 18. Bxc6 (18. Nxf5 gxf5 19. Kc2 Rg8 $17) 18... Kxc6) 17. Bxe4 $15 {[%emt 0:00:05]} Bh6 {[%emt 0:03:48]} 18. Bxc6 {[%emt 0:03:37]} bxc6 {[%emt 0:00:00]} 19. Kc2 {[%emt 0:01:57]} Bxf4 {[%emt 0:00:00]} 20. Bxf4 {[%emt 0:01:20]} Nxf4 {[%emt 0:00:08]} 21. Nd2 {[%emt 0:00:15]} Re8 {[%emt 0:03:08]} 22. Nc4 {[%emt 0:10:03]} Re6 {[%emt 0:06:18] And now ...Nd3 would win.} 23. Raf1 {[%emt 0:01:38]} Nd5 {[%emt 0:05:34]} 24. Rf2 {[%emt 0:05:49]} f6 {[%emt 0:00:36]} (24... Nb6 {with more complications.} 25. Nd6+ Kc7 26. Rd1 Rxe5 27. Nxf7 Rh5) 25. exf6 {[%emt 0:00:48]} Rxf6 {[%emt 0:00:38]} (25... Nxf6 {is more complex.} 26. Rhf1 Nd5 27. Rf8+ Kc7) 26. Rxf6 {[%emt 0:03:39] The position is equal.} Nxf6 {[%emt 0:00:02][%mdl 4096] Endgame KRN-KRN} 27. Re1 {[%emt 0:00:08]} Nd5 {[%emt 0:03:34]} 28. Re8+ {[%emt 0:02:47]} Kc7 {[%emt 0:01:51]} 29. Kb3 {[%emt 0:02:00]} Re7 {[%emt 0:03:20]} 30. Ra8 {[%emt 0:01:13]} Kb7 {[%emt 0:00:33]} 31. Rh8 {[%emt 0:00:08]} Nb6 {[%emt 0:01:28]} 32. Na5+ {[%emt 0:04:16]} Kc7 {[%emt 0:00:14]} 33. a4 {[%emt 0:00:25]} Kd6 {[%emt 0:07:45]} 34. Rd8+ {[%emt 0:02:29]} Kc7 {[%emt 0:00:17]} 35. Rf8 {[%emt 0:03:32]} Rd7 {[%emt 0:00:57]} 36. Rf6 {[%emt 0:01:39]} Rd6 {[%emt 0:00:08]} 37. Rf7+ {[%emt 0:00:17]} Rd7 {[%emt 0:00:06]} 38. Rf6 {[%emt 0:00:20]} Rd6 {[%emt 0:00:06]} 39. Rf7+ {[%emt 0:00:08] Weighted Error Value: White=0.16 (very precise) /Black=0.09 (flawless)} 1/2-1/2

[Event "LV Capablanca Memorial Premier 2022"]
[Site "La Habana"]
[Date "2022.04.25"]
[Round "6.3"]
[White "Hernandez Gil, Ineymig"]
[Black "Arribas Robaina, Maritza"]
[Result "1/2-1/2"]
[ECO "C10"]
[WhiteElo "2348"]
[BlackElo "2204"]
[Annotator "TA"]
[PlyCount "95"]
[EventDate "2022.04.20"]
[EventType "tourn"]
[EventCountry "CUB"]
[SourceTitle "playchess.com"]
[Source "ChessBase"]
[SourceQuality "1"]
[TimeControl "40/5400+30:1800+30"]

{[%evp 21,95,50,56,28,35,32,27,24,37,27,37,40,43,52,41,38,50,0,60,43,37,28,40,15,35,32,36,22,37,41,41,27,22,20,33,6,29,0,26,0,32,2,8,6,20,0,9,9,24,14,14,14,19,0,6,0,0,0,8,0,8,0,0,0,0,0,0,0,0,0,0,0,0,0,0,0]} 1. e4 {[%emt 0:00:43]} e6 {[%emt 0:00:04]} 2. d4 {[%emt 0:00:06]} d5 {[%emt 0:00:05]} 3. Nd2 {[%emt 0:00:07][%cal Bb1d2,Bd2e4,Be4g3][%mdl 32]} dxe4 {[%emt 0:00:18]} 4. Nxe4 {[%emt 0:00:07]} Bd7 {[%emt 0:00:10]} 5. Nf3 {[%emt 0:00:36]} Bc6 {[%emt 0:00:06]} 6. Bd3 {[%emt 0:05:39]} Nd7 {[%emt 0:00:14]} 7. O-O {[%emt 0:00:48]} Ngf6 {[%emt 0:00:20]} 8. Ng3 {[%emt 0:02:52]} Be7 {[%emt 0:06:20]} 9. Re1 {[%emt 0:01:13]} Bxf3 {[%emt 0:00:00]} 10. Qxf3 {[%emt 0:03:25]} c6 {[%emt 0:02:46]} 11. c3 {[%emt 0:01:46]} O-O {[%emt 0:05:17]} 12. Ne4 {[%emt 0:11:49] C10: French with 3 Nc3: Unusual Black 3rd moves and 3...dxe4.} Nxe4 {[%emt 0:00:00]} 13. Qxe4 {[%emt 0:01:47][%csl Gd3][%cal Re4h7] [#]} g6 {[%emt 0:07:14] [#]} 14. Bc2 $146 {[%emt 0:06:33] White has an edge.} (14. Bh6 {feels hotter.} Re8 15. Qf4 a5 16. Rad1) ({Predecessor:} 14. Bh6 Re8 15. Rad1 Bg5 16. Bxg5 Qxg5 17. g3 Rad8 18. h4 Qd5 19. a3 Qxe4 20. Bxe4 {½-½ (61) Seger,R (2416)-Rustemov,A (2541) Germany 2010}) 14... Nf6 {[%emt 0:00:00]} (14... a5 {with more complications.} 15. Bh6 Re8 16. Qf4 Nf6) 15. Qe2 {[%emt 0:03:00]} Qa5 {[%emt 0:00:00]} 16. Bf4 {[%emt 0:07:13]} Qh5 {[%emt 0:02:51]} 17. Qd2 {[%emt 0:04:16] [#] Strongly threatening Re5.} Qa5 {[%emt 0:09:07]} 18. Be5 {[%emt 0:10:37]} Ng4 {[%emt 0:10:17]} 19. Bf4 {[%emt 0:14:51]} (19. Bg3 $14) 19... Rfe8 {[%emt 0:00:31]} ({Better is} 19... Nf6 $11) 20. h3 {[%emt 0:01:45]} Nf6 {[%emt 0:00:09]} 21. a4 {[%emt 0:09:29]} Qd8 {[%emt 0:03:11]} 22. Qe2 {[%emt 0:01:49]} Nh5 {[%emt 0:03:58]} 23. Be5 {[%emt 0:04:36]} Bd6 {[%emt 0:00:38]} 24. Rad1 {[%emt 0:02:31]} Qc7 {[%emt 0:03:11]} 25. Qf3 {[%emt 0:01:28]} Rad8 {[%emt 0:01:22]} 26. g3 {[%emt 0:07:17]} Bxe5 {[%emt 0:06:46]} 27. Rxe5 {[%emt 0:00:41]} Rd5 {[%emt 0:00:09]} (27... Kg7 {seems wilder.} 28. g4 Nf6 29. g5 Nh5) 28. Rde1 {[%emt 0:01:00]} Rxe5 {[%emt 0:00:12]} (28... Kg7 {keeps more tension.} 29. g4 Nf6 30. Qg3 b6) 29. Rxe5 {[%emt 0:00:26]} Rd8 {[%emt 0:01:46]} 30. Kg2 {[%emt 0:02:02]} Rd5 {[%emt 0:01:02]} 31. Re1 {[%emt 0:01:24]} Qd8 {[%emt 0:00:35]} 32. Be4 {[%emt 0:06:40]} Rd6 {[%emt 0:00:31]} 33. Re2 {[%emt 0:04:33]} Qa5 {[%emt 0:00:48]} 34. Bc2 {[%emt 0:01:25]} Qd5 {[%emt 0:00:22]} 35. Re5 {[%emt 0:00:35]} Qxf3+ {[%emt 0:13:22] The position is equal.} 36. Kxf3 $11 {[%emt 0:01:26][%mdl 4096] Endgame KRB-KRN} Nf6 {[%emt 0:01:59]} 37. Re2 {[%emt 0:01:06]} Kf8 {[%emt 0:00:31]} 38. h4 {[%emt 0:00:00]} Ke7 {[%emt 0:06:04]} 39. Re3 {[%emt 0:00:00][%cal Be2e3,Be3d3,Bd3d1,Bd1b1][%mdl 32]} Nd5 {[%emt 0:01:09]} 40. Rd3 {[%emt 0:00:00]} Nb6 {[%emt 0:00:00]} 41. Rd1 {[%emt 0:00:00]} a5 {[%emt 0:08:12]} 42. Rb1 {[%emt 0:00:00]} Rd7 {[%emt 0:04:05]} 43. g4 {[%emt 0:01:11]} h6 {[%emt 0:01:24]} 44. Kg3 {[%emt 0:02:11]} Kf6 {[%emt 0:01:51]} 45. f4 {[%emt 0:03:35]} Nc4 {[%emt 0:00:32]} 46. Bd3 {[%emt 0:01:13]} Nb6 {[%emt 0:00:22]} 47. Bc2 {[%emt 0:00:29]} Nc4 {[%emt 0:00:09]} 48. Bd3 {[%emt 0:05:21] Weighted Error Value: White=0.10 (very precise) /Black=0.09 (flawless)} 1/2-1/2

[Event "LV Capablanca Memorial Premier 2022"]
[Site "La Habana"]
[Date "2022.04.25"]
[Round "6.4"]
[White "Bulmaga, Irina"]
[Black "Lujan, Carolina"]
[Result "1-0"]
[ECO "B22"]
[WhiteElo "2390"]
[BlackElo "2334"]
[Annotator "TA"]
[PlyCount "143"]
[EventDate "2022.04.20"]
[EventType "tourn"]
[EventCountry "CUB"]
[SourceTitle "playchess.com"]
[Source "ChessBase"]
[SourceQuality "1"]
[TimeControl "40/5400+30:1800+30"]

{[%evp 24,143,-4,-14,-18,-21,0,0,0,0,25,29,33,25,25,38,26,29,26,37,47,51,57,70,81,20,25,14,31,0,0,0,10,10,15,10,11,12,78,81,77,67,55,0,74,74,74,74,74,74,74,74,74,74,81,81,149,121,118,88,81,81,129,88,88,88,89,89,89,75,137,54,97,104,100,80,80,69,70,80,308,308,316,216,352,352,352,252,352,352,360,216,353,216,603,308,29959,1478,1462,1343,1187,972,29974,29974,29977,29978,29978,29979,29979,29979,29980,29981,29981,29982,29982,29983,29983,29984,29984,29985,29985,29986]} 1. e4 {[%emt 0:00:06]} c5 {[%emt 0:00:12]} 2. c3 {[%emt 0:00:09]} Nf6 {[%emt 0:00:17]} 3. e5 {[%emt 0:00:20]} Nd5 {[%emt 0:00:05]} 4. Nf3 {[%emt 0:00:14]} e6 {[%emt 0:00:20]} 5. d4 {[%emt 0:00:16]} cxd4 {[%emt 0:00:26]} 6. cxd4 {[%emt 0:00:09]} d6 {[%emt 0:01:09]} 7. Bc4 {[%emt 0:00:22]} Nc6 {[%emt 0:00:35]} 8. O-O {[%emt 0:00:23]} Be7 {[%emt 0:00:42]} 9. Qe2 {[%emt 0:00:14]} O-O {[%emt 0:01:09]} 10. Nc3 {[%emt 0:00:18]} Nxc3 {[%emt 0:01:26]} 11. bxc3 {[%emt 0:00:09]} dxe5 {[%emt 0:00:17]} 12. dxe5 {[%emt 0:00:10]} Qc7 {[%emt 0:04:04]} 13. Bd3 {[%emt 0:00:17]} b6 {[%emt 0:04:02] B22: Sicilian: 2 c3.} 14. Re1 $1 {[%emt 0:18:58] 14.Re1 scores better than 14.Qe4.} Bb7 {[%emt 0:10:45]} 15. Ng5 {[%emt 0:06:10]} Bxg5 {[%emt 0:21:12] The position is equal.} 16. Bxg5 $40 {[%emt 0:00:09][%mdl 128] White mounts an attack.} Nxe5 {[%emt 0:08:32] has lost popularity (16...Ne7).} 17. Qxe5 {[%emt 0:03:27]} Qxe5 {[%emt 0:00:09][%mdl 64] Remove Defender} 18. Rxe5 {[%emt 0:00:08]} f6 {[%emt 0:00:08]} 19. Rxe6 {[%emt 0:03:44]} fxg5 {[%emt 0:00:08]} 20. Bc4 {[%emt 0:02:47]} Kh8 {[%emt 0:11:13]} 21. Re7 {[%emt 0:00:21]} Rac8 {[%emt 0:02:08]} 22. Bb3 {[%emt 0:13:10]} Ba8 {[%emt 0:01:39]} 23. Rxa7 {[%emt 0:00:55]} Rxc3 {[%emt 0:00:31] [#]} 24. Re1 $146 {[%emt 0:05:06]} (24. h3 $16) ({Predecessor:} 24. h3 Rfc8 25. Kh2 R3c7 26. Rxc7 Rxc7 27. Rd1 Rc8 28. Rd6 Rb8 29. f3 g6 30. Rd7 {½-½ (72) Senador,E (2390)-Sukandar,I (2262) Manila 2008}) 24... g4 $11 {[%emt 0:10:54]} 25. Rf7 {[%emt 0:09:13][%cal Rf7f8]} Rfc8 {[%emt 0:03:29]} 26. Kf1 {[%emt 0:01:48]} (26. Rfe7 $5 {[%cal Re7e8]} Rc1 27. h4 $14) 26... Bc6 {[%emt 0:01:03]} 27. Ree7 {[%emt 0:11:52]} Bb5+ {[%emt 0:03:43]} 28. Ke1 {[%emt 0:00:03]} Rd8 {[%emt 0:00:35] ( -> ...Rc1+)} 29. f3 {[%emt 0:00:31]} gxf3 {[%emt 0:02:37]} 30. gxf3 {[%emt 0:07:25]} Rc1+ {[%emt 0:01:33]} (30... Bc4 $11 31. Bxc4 (31. Rxg7 Rc1+ 32. Kf2 Rf1+ 33. Kg2 Rd2+ 34. Kh3 Bxb3 $14) 31... Rxc4) 31. Kf2 $16 {[%emt 0:00:02]} Rg8 {[%emt 0:07:27]} 32. Rf4 {[%emt 0:06:55] Prevents Bc4. And now a4 would win.} Rd8 {[%emt 0:02:09]} 33. Rff7 {[%emt 0:02:50]} (33. Rb4 $5 {[%cal Rb4b5]} Rf1+ 34. Kg2 Rd2+ 35. Kg3 Rg1+ 36. Kf4 g5+ 37. Ke5 Re1+ 38. Kf6 Rxe7 39. Kxe7 $16) 33... Rg8 $1 {[%emt 0:00:03]} 34. Rb7 {[%emt 0:01:27]} Bc4 {[%emt 0:00:39]} 35. Rfc7 {[%emt 0:00:09]} b5 {[%emt 0:00:11]} 36. a4 $1 {[%emt 0:03:36]} Ra1 {[%emt 0:02:01]} (36... Rf1+ 37. Kg2 Ra1 38. Bxc4 bxc4 39. Rxc4) 37. Bxc4 {[%emt 0:01:02]} bxc4 {[%emt 0:00:01]} 38. Rxc4 {[%emt 0:00:33][%mdl 4096] Endgame KRR-KRR} Ra2+ {[%emt 0:00:00]} 39. Kg3 {[%emt 0:00:13]} Ra8 {[%emt 0:01:35]} ({Better is} 39... Ra3 40. Ra7 h6) 40. Ra7 {[%emt 0:00:00][%cal Ra7a8]} Rf8 {[%emt 0:00:00]} 41. Rcc7 {[%emt 0:05:00]} Ra1 {[%emt 0:06:03]} 42. Rf7 {[%emt 0:00:59][%cal Rf7f8]} (42. Rxg7 $2 Rg1+ 43. Kh4 Rxg7 $19) 42... Re8 {[%emt 0:03:25]} (42... Rd8 $142 43. a5 (43. Rxg7 $2 Rg1+ 44. Kf4 Rxg7 $19) 43... h6) 43. Kf4 {[%emt 0:06:35]} Rg8 {[%emt 0:06:55]} 44. a5 {[%emt 0:05:37]} h6 {[%emt 0:00:48]} 45. h4 {[%emt 0:07:06]} Rh1 {[%emt 0:02:03]} 46. Kg4 {[%emt 0:02:06] Threatens to win with Kh5.} Rg1+ {[%emt 0:04:01] [#]} ({Black should play} 46... Rc8 47. a6 Rg1+ 48. Kf4 Ra1) 47. Kh3 {[%emt 0:00:54]} (47. Kf5 $1 $16) 47... Rh1+ {[%emt 0:00:07] [#]} 48. Kg3 $1 {[%emt 0:00:08] &Bianco is more active.} Rg1+ {[%emt 0:01:01]} 49. Kh2 {[%emt 0:00:09]} Rg6 {[%emt 0:00:47]} 50. Rf4 {[%emt 0:01:03]} Rc8 $1 {[%emt 0:03:52]} 51. Rg4 {[%emt 0:01:41]} Rc2+ $2 {[%emt 0:02:40] Loses the game.} (51... Rxg4 $16 52. fxg4 h5 53. gxh5 Kh7) 52. Kg3 $18 {[%emt 0:00:04]} Rxg4+ {[%emt 0:02:24]} 53. Kxg4 {[%emt 0:01:46] Hoping for h5. KR-KR} Rc5 {[%emt 0:02:05]} (53... Kh7 {is a better defense.} 54. f4 Rg2+ 55. Kf3 Rg1) 54. h5 {[%emt 0:02:25]} Rg5+ {[%emt 0:00:16]} 55. Kh4 {[%emt 0:00:17]} Rf5 {[%emt 0:00:08]} 56. a6 {[%emt 0:00:31]} Ra5 {[%emt 0:01:18]} 57. f4 {[%emt 0:00:26][%cal Bf3f4,Bf4f5][%mdl 32] Black must now prevent Ra8+.} Kh7 {[%emt 0:00:14]} (57... Kg8 $142 58. Kg3 Kf8) 58. Kg4 {[%emt 0:00:28]} Kg8 {[%emt 0:00:24]} 59. f5 {[%emt 0:01:30] aiming for Kf4.} Kh8 $2 {[%emt 0:01:05]} (59... Ra4+ $18 60. Kf3 Kf8 61. Ra8+ Ke7) 60. Kf4 {[%emt 0:00:02]} (60. Ra8+ $142 Kh7 61. a7 Ra3 62. Kf4 Ra5 63. Ke4 Ra6 64. Kd3 Ra3+ 65. Kc4) 60... Kg8 {[%emt 0:00:24]} 61. Ke4 {[%emt 0:00:09]} Kh8 {[%emt 0:00:20]} 62. Kd4 {[%emt 0:00:35]} Rxf5 {[%emt 0:00:48]} 63. Rb7 {[%emt 0:00:10] White mates.} Ra5 {[%emt 0:00:21]} 64. a7 {[%emt 0:00:07]} Kh7 {[%emt 0:00:16]} 65. Kc4 {[%emt 0:00:08]} Ra1 {[%emt 0:00:48]} 66. Kb5 {[%emt 0:00:12]} Rb1+ {[%emt 0:00:38]} 67. Kc6 {[%emt 0:00:07]} Rc1+ {[%emt 0:00:35]} 68. Kd7 {[%emt 0:00:17]} Ra1 {[%emt 0:00:43]} 69. Kc8 {[%emt 0:00:07]} Rf1 {[%emt 0:00:25]} 70. Rd7 {[%emt 0:00:17]} Ra1 {[%emt 0:00:35]} 71. Kb8 {[%emt 0:00:07]} Rb1+ {[%emt 0:00:42]} 72. Rb7 {[%emt 0:00:07] Weighted Error Value: White=0.19 (very precise) /Black=0.37} 1-0

[Event "LV Capablanca Memorial Premier 2022"]
[Site "La Habana"]
[Date "2022.04.25"]
[Round "6.5"]
[White "Cori Tello, Deysi"]
[Black "Miranda Llanes, Yerisbel"]
[Result "0-1"]
[ECO "A20"]
[WhiteElo "2391"]
[BlackElo "2261"]
[Annotator "TA"]
[PlyCount "76"]
[EventDate "2022.04.20"]
[EventType "tourn"]
[EventCountry "CUB"]
[SourceTitle "playchess.com"]
[Source "ChessBase"]
[SourceQuality "1"]
[TimeControl "40/5400+30:1800+30"]

{[%evp 9,76,7,7,-4,-5,-9,-9,-9,-6,-9,-9,-30,-7,-7,-7,-30,-38,-47,-37,-140,-124,-263,-256,-224,-74,-226,-188,-204,0,-207,0,-195,-194,-208,-216,-491,-490,-487,-470,-521,-321,-325,-232,-283,-243,-294,-298,-289,-292,-434,-243,-247,-236,-250,-246,-241,-238,-293,-301,-315,-281,-290,-295,-479,-478,-473,-473,-468,-463]} 1. c4 {[%emt 0:00:04]} e5 {[%emt 0:00:08]} 2. g3 {[%emt 0:00:47]} c6 {[%emt 0:00:13]} 3. d4 {[%emt 0:01:48]} e4 {[%emt 0:00:15]} 4. Nc3 {[%emt 0:00:37]} d5 {[%emt 0:00:05]} 5. cxd5 {[%emt 0:00:45]} cxd5 {[%emt 0:00:05]} 6. Qb3 {[%emt 0:00:04] A20: English Opening: 1...e5.} Nc6 {[%emt 0:00:59][%cal Bb8c6,Bc6d4,Bd4c2][%mdl 32]} 7. Qxd5 {[%emt 0:02:04]} (7. Nxd5 $2 Be6 8. e3 Bxd5 $19) 7... Qxd5 {[%emt 0:00:17]} 8. Nxd5 {[%emt 0:00:03] The position is equal.} Nxd4 {[%emt 0:00:13] White should prevent ...Nc2+.} 9. Nc7+ {[%emt 0:05:49]} Kd8 {[%emt 0:00:10]} 10. Nxa8 {[%emt 0:00:08] Bg5+ is the strong threat.} Nc2+ {[%emt 0:00:03]} 11. Kd1 {[%emt 0:00:17]} Nxa1 {[%emt 0:00:02]} 12. Be3 {[%emt 0:05:10]} Be6 {[%emt 0:06:00] aiming for ...Nf6.} 13. Bxa7 {[%emt 0:04:08]} Bxa2 {[%emt 0:01:09]} 14. Bg2 {[%emt 0:27:54] [#]} ({White should try} 14. e3 $15) 14... Nf6 $146 {[%emt 0:09:04] And now ...Bb4 would win.} ({Predecessor:} 14... f5 15. Bb6+ Kd7 16. Ba5 Nf6 17. Nh3 Nb3 18. Bc3 Bc5 {0-1 (18) Forster,R (2459)-Volke,K (2455) Switzerland 2012}) 15. Bd4 {[%emt 0:01:54] [#]} (15. e3 $17) 15... Bb4 $1 $19 {[%emt 0:07:41] White must now prevent ...Ke7.} (15... Bb3+ 16. Kc1 $17) 16. e3 {[%emt 0:10:44]} ({Much weaker is} 16. Bxf6+ gxf6 17. Bxe4 Ke7) 16... Bb3+ {[%emt 0:25:06]} (16... Ke7 $19 17. Nb6 Rd8) 17. Ke2 $2 {[%emt 0:07:55]} (17. Kc1 $17 {was forced.}) 17... Bc4+ {[%emt 0:00:44]} 18. Kd1 {[%emt 0:00:01]} Bb3+ {[%emt 0:00:34]} 19. Ke2 {[%emt 0:00:03]} Bc4+ {[%emt 0:03:28]} 20. Kd1 {[%emt 0:00:01]} Re8 {[%emt 0:02:17] Strongly threatening ...Re6.} 21. Nb6 {[%emt 0:08:05]} Bb3+ {[%emt 0:06:49]} 22. Ke2 $2 {[%emt 0:00:11]} (22. Kc1 Ba5 23. Ne2) 22... Nc2 {[%emt 0:05:50]} 23. Bxf6+ {[%emt 0:13:01]} gxf6 {[%emt 0:00:02]} 24. Bh3 {[%emt 0:00:15]} f5 {[%emt 0:09:08]} 25. Bxf5 {[%emt 0:02:29]} Re5 {[%emt 0:00:01]} 26. g4 {[%emt 0:03:10]} Kc7 {[%emt 0:03:11]} 27. Nd7 {[%emt 0:02:52]} Rd5 {[%emt 0:03:59][%cal Rb3c4]} 28. Bxe4 {[%emt 0:01:32]} Rxd7 {[%emt 0:01:00]} 29. Nh3 {[%emt 0:00:38] [#]} (29. Kf3 {was the only chance.}) 29... h6 {[%emt 0:01:40]} (29... Ne1 $142 $1 {[%mdl 512] ( -> ...Bc4+)} 30. Kf1 Bc4+ 31. Kg1 Rd1) 30. Rc1 {[%emt 0:00:31] [#]} Kb6 $1 {[%emt 0:02:00]} 31. Nf4 {[%emt 0:01:41]} (31. Bd3 Rc7) 31... Rd2+ {[%emt 0:00:32]} 32. Kf3 {[%emt 0:00:11]} Bd6 {[%emt 0:00:40]} 33. Ne2 {[%emt 0:01:27]} Nb4 {[%emt 0:01:41]} ({Not} 33... Bxh2 $2 34. Ng3 Bxg3 35. Kxg3 $19) 34. Nd4 {[%emt 0:00:36]} Bd1+ {[%emt 0:00:37]} ({Don't go for} 34... Rxb2 $2 35. Nxb3 Rxb3 36. Rc8 $17) 35. Kg2 {[%emt 0:00:02]} Bxg4 {[%emt 0:00:45]} 36. b3 $2 {[%emt 0:00:17]} (36. Nf5) 36... Nd3 {[%emt 0:01:31] Black is clearly winning.} 37. Bxd3 {[%emt 0:00:49]} Rxd3 {[%emt 0:00:02]} 38. Rc4 {[%emt 0:00:13]} Bd7 {[%emt 0:02:19] Weighted Error Value: White=0.46/Black=0.41} 0-1